Cogmind - Beta 14 @@@ ROGUE MODE // 2024.09.14 @ 19:35:57 Player: cptwinky Result: Destroyed by S-43 Plague with Heavy Machine Gun Performance ------------- Evolutions (7) 3500 Regions Visited (10) 2000 Robots Destroyed (148) 740 Value Destroyed (5605) 5605 Prototype IDs (12) 240 Alien Tech Used (0) 0 Bonus (267) 267 TOTAL SCORE: 12352 Bonus ------- High Alert Combat Kills 110 Follower Combat Kills 157 Cogmind --------- Core Integrity 0/1300 Matter 300/300 Energy 100/100 System Corruption 1% Temperature Cool (0) Movement Core (50) Location -3/Research Parts ------- > --- POWER (2) -------- (None) > --- PROPULSION (7) --- (None) > --- UTILITY (9) ------ Advanced Terrain Scan Processor > --- WEAPON (3) ------- (None) > --- INVENTORY (5) ---- Antimatter Reactor Heavy Dispersion Rifle Nova Cannon Improved Datajack Peak State ------------ > --- POWER ------------ Light Antimatter Reactor Quantum Reactor > --- PROPULSION ------- Improved Titanium Leg Improved VSS Leg Improved VSS Leg Improved VSS Leg Myomer Leg Myomer Leg > --- UTILITY ---------- Advanced Heat Sink Advanced Cooling System Large Storage Unit Advanced Signal Interpreter Improved Transmission Jammer Improved Light Armor Plating Advanced Thermal Shield Hacking Suite > --- WEAPON ----------- Heavy Particle Gun Advanced Beam Rifle Advanced Beam Rifle > --- INVENTORY -------- Quantum Reactor High-capacity Matter Pod Structural Scanner Improved Sensor Array Layered Light Armor Plating Hacking Suite Improved Hacking Suite System Shield Component Analysis Suite Heavy Particle Gun Missile Launcher Improved Datajack Power Sword [Rating: 101] Favorites ----------- Power Enhanced Nuclear Core Engine Light Ion Engine Power Core Enhanced Nuclear Core Reactor Quantum Reactor Propulsion Carbon-fiber Leg Leg Carbon-fiber Leg Hover Unit Backup Propulsion I Utility Hacking Suite Device Improved Heat Sink Storage Large Storage Unit Processor Advanced Signal Interpreter Hackware Hacking Suite Protection Hardened Medium Armor Plating Weapon Heavy Particle Gun Energy Gun Heavy Particle Gun Ballistic Gun Assault Rifle Ballistic Cannon Light Cannon Launcher Missile Launcher Impact Weapon Heavy Flail Slashing Weapon Power Sword Special Melee Weapon Datajack Build | -11 -10 -9 -8 -7 -6 -5 -4 -4 -4 -3 ------- Run | Yrd Mat Mat Mat Fac Fac Fac Fac Was Fac Res Slots Evolved 14 | . . 2 2 2 2 2 2 . . 2 Power 1 | . . . . . 1 . . . . . Propulsion 5 | . . 1 . 1 . 1 1 . . 1 Utility 7 | . . 1 1 1 1 1 1 . . 1 Weapon 1 | . . . 1 . . . . . . . Parts Attached 216 | 6 16 25 34 15 14 26 53 6 13 8 Power 18 | 1 1 2 3 3 1 1 3 . 3 . Engine 6 | 1 1 2 1 . . . . . 1 . Core 6 | . . . 2 3 1 . . . . . Reactor 6 | . . . . . . 1 3 . 2 . Propulsion 34 | 2 3 7 5 6 . 7 3 1 . . Treads . | . . . . . . . . . . . Leg 34 | 2 3 7 5 6 . 7 3 1 . . Wheel . | . . . . . . . . . . . Hover . | . . . . . . . . . . . Flight . | . . . . . . . . . . . Utility 80 | 1 3 6 7 4 9 11 24 3 8 4 Device 51 | . 2 1 2 1 8 10 17 2 6 2 Storage 3 | 1 1 . 1 . . . . . . . Processor 6 | . . 1 . 2 . 1 1 . . 1 Hackware 7 | . . . 1 . . . 3 . 2 1 Protection 13 | . . 4 3 1 1 . 3 1 . . Artifact . | . . . . . . . . . . . Weapon 84 | 2 9 10 19 2 4 7 23 2 2 4 Energy Gun 46 | 2 3 1 13 1 2 3 15 1 2 3 Energy Cannon . | . . . . . . . . . . . Ballistic Gun 4 | . 1 . 3 . . . . . . . Ballistic Cannon 10 | . 4 6 . . . . . . . . Launcher 6 | . . 1 . . . 2 2 . . 1 Special Weapon . | . . . . . . . . . . . Impact Weapon 5 | . . . 2 1 2 . . . . . Slashing Weapon 9 | . . . . . . 2 6 1 . . Piercing Weapon . | . . . . . . . . . . . Special Melee Weapon 4 | . 1 2 1 . . . . . . . Unidentified Prototypes 8 | . . 1 5 1 . . . . . 1 Parts Lost 43 | . . 2 . . . 3 24 1 1 12 Power 6 | . . . . . . 1 3 . . 2 Propulsion 11 | . . . . . . . 8 . 1 2 Utility 14 | . . 2 . . . . 8 . . 4 Weapon 12 | . . . . . . 2 5 1 . 4 Highest Loss Streak 12 | . . 1 . . . 2 12 1 1 9 To Critical Strikes . | . . . . . . . . . . . Average Slot Usage (%) 89 | . 96 97 99 96 98 98 93 23 38 25 Engine 4 | . 14 11 4 3 . . . . 1 2 Core 3 | . . . 4 3 11 9 . . . . Reactor 1 | . . . . . . . 9 . . . Leg 24 | . 28 33 26 27 26 28 25 1 2 . Device 11 | . 10 10 8 10 13 17 17 1 9 1 Storage 7 | . 14 11 9 7 6 5 4 . . . Processor 3 | . . 1 . 3 6 5 5 10 10 9 Hackware 5 | . . . 9 7 6 5 6 6 7 4 Protection 5 | . . 7 8 7 6 5 5 . 2 . Energy Gun 13 | . 9 . 21 22 18 15 14 . 3 4 Ballistic Gun 1 | . 7 . 2 . . . . . . . Ballistic Cannon 4 | . 10 20 1 . . . . . . . Peak Build Rating 101 | 6 10 16 35 48 55 82 101 39 74 38 Average Rating 43 | 5 9 12 31 41 53 70 91 20 41 24 On Entrance 29 | . 6 10 15 35 46 54 75 23 39 20 Naked Turns . | . . . . . . . . . . . Heaviest Build 76 | 12 20 29 46 51 54 68 76 15 53 10 Greatest Support 115 | 20 20 39 43 63 63 85 115 30 30 12 Greatest Overweight (x) 3 | . . . 1 1 . . 3 . 3 1 Average Overweight (x) . | . . . . . . . . . . . Largest Inventory Capacity 15 | 8 10 10 15 15 15 15 15 5 5 5 Average Capacity 12 | 7 9 10 13 15 15 15 14 5 5 5 Most Carried 15 | 5 10 10 15 15 15 15 15 5 5 5 Average Carried 11 | 2 9 9 12 14 14 14 13 4 4 4 Final Capacity 15 | 8 10 10 15 15 15 15 5 5 5 5 Final Carried 15 | 5 10 10 15 15 15 15 5 3 5 4 Class Distribution -------------------- 29% | Mutant 22% | Scavenger-Tank 18% | Tank 11% | Scavenger-Mutant 7% | Scavenger-Skirmisher 3% | Hacker-Mutant Dominant Class ---------------- Mutant | -10/Materials Mutant | -9/Materials Tank | -8/Materials Scavenger-Tank | -7/Factory Scavenger-Tank | -6/Factory Scavenger-Skirmisher | -5/Factory Scavenger-Tank | -4/Factory Mutant | -4/Waste Mutant | -4/Factory Mutant | -3/Research Resources | -11 -10 -9 -8 -7 -6 -5 -4 -4 -4 -3 ----------- Run | Yrd Mat Mat Mat Fac Fac Fac Fac Was Fac Res Matter Collected 3344 | 260 246 999 518 110 168 228 565 . 175 75 Remotely 20 | . . . . . . . . . 20 . Salvage Created 6050 | 143 503 875 1133 616 307 860 1095 . 404 114 Parts 280 | 14 28 54 48 20 9 29 60 . 16 2 Haulers Intercepted 10 | . 1 3 4 2 . . . . . . Recyclers Shooed 2 | . . . . 1 . . . . 1 . Parts Field Recycled . | . . . . . . . . . . . Retrieved Matter . | . . . . . . . . . . . Parts Self-Destructed . | . . . . . . . . . . . Prevented . | . . . . . . . . . . . Kills | -11 -10 -9 -8 -7 -6 -5 -4 -4 -4 -3 ------- Run | Yrd Mat Mat Mat Fac Fac Fac Fac Was Fac Res Combat Hostiles Destroyed 109 | . 11 23 19 11 5 17 20 . 1 2 Melee 1 | . . . . . . . 1 . . . Guns 64 | . 6 . 17 11 5 8 14 . 1 2 Cannons 24 | . 4 19 1 . . . . . . . AOE 16 | . . 4 . . . 7 5 . . . Classes Destroyed 13 | 2 4 4 . 2 1 . . . . . Worker 6 | . 1 1 . 1 . . 1 . 2 . Builder 5 | . . . . . 1 . 4 . . . Tunneler 4 | 3 . . . . . . 1 . . . Hauler 10 | . 1 3 4 2 . . . . . . Recycler 4 | 1 . 1 . . . . . . 2 . Operator 5 | . 1 1 . . 1 . 1 . 1 . Watcher 5 | . . 1 2 1 1 . . . . . Swarmer 18 | . . 6 3 3 2 . 4 . . . Grunt 46 | . 11 8 11 3 . 11 2 . . . Brawler 4 | . . 1 . . . 2 . . . 1 Sentry 18 | . . 8 5 1 2 1 . . 1 . Hunter 8 | . . . . 3 . . 4 . . 1 Programmer 15 | . . . . 1 1 3 10 . . . Best Kill Streak 5 | 4 4 5 5 3 2 4 5 . 3 2 Combat Bots Only 5 | . 4 4 5 3 2 4 4 . 1 2 Max Kills in Single Turn 5 | 2 1 5 2 2 1 3 3 . 1 1 Gunslinging 1 | . . . 1 1 . . . . . . Exploded 4 | . . 4 . . . 3 2 . . . Melee 1 | . . . . . . . 1 . . . Uniques/NPCs Destroyed . | . . . . . . . . . . . Combat | -11 -10 -9 -8 -7 -6 -5 -4 -4 -4 -3 -------- Run | Yrd Mat Mat Mat Fac Fac Fac Fac Was Fac Res Hostile Shots Fired 810 | . 46 111 65 55 44 60 266 1 21 141 Missed 296 | . 16 38 16 18 16 26 99 . 7 60 Damage Taken 9059 | . 369 947 762 650 275 650 3126 48 373 1859 Core 2203 | . 53 86 48 98 41 39 450 48 23 1317 Absorbed by Shields 196 | . . . . 40 76 80 . . . . Ignored by Resistances 96 | . . . . . . . 96 . . . Regen/Repaired (Parts) 430 | . . 43 262 . . . 125 . . . Core Remaining (%) 84 | 100 78 78 91 86 95 96 . . 54 . Volleys Fired 367 | 9 34 73 47 30 21 36 73 . 32 12 Largest 3 | 2 2 2 3 3 3 3 3 . 1 3 Hottest 290 | 80 70 70 165 165 165 165 290 . 65 218 Shots Fired 877 | 18 68 145 141 90 63 101 195 . 31 25 Gun 703 | 18 48 . 139 90 63 97 193 . 31 24 Cannon 166 | . 20 144 2 . . . . . . . Launcher 8 | . . 1 . . . 4 2 . . 1 Special . | . . . . . . . . . . . Kinetic 220 | . 44 144 32 . . . . . . . Thermal 649 | 18 24 . 109 90 63 97 193 . 31 24 Explosive 8 | . . 1 . . . 4 2 . . 1 Electromagnetic . | . . . . . . . . . . . Robot Hit Streak 18 | 10 13 16 12 11 12 15 18 . 11 10 Robot Miss Streak 6 | 2 2 6 4 4 3 4 5 . 3 2 Penetration Max . | . . . . . . . . . . . Secondary Targets 13 | . . . 5 5 . 1 2 . . . Max Gunslinging Chain 1 | . . . 1 1 . 1 1 . . . Capacitor 8 | . . . . . . . . . 8 . Shots Hit Robots 569 | 12 53 86 92 46 41 76 124 . 21 18 Core Hits 259 | 5 26 35 41 21 15 44 53 . 10 9 Critical Kills 1 | . 1 . . . . . . . . . Critical Parts Destroyed . | . . . . . . . . . . . Critical Strikes 27 | . 5 3 6 1 2 6 4 . . . Burn 22 | . 3 . 6 1 2 6 4 . . . Destroy 1 | . 1 . . . . . . . . . Blast 4 | . 1 3 . . . . . . . . Melee Attacks 43 | . 1 6 4 4 6 3 18 1 . . Impact 14 | . . . 4 4 6 . . . . . Slashing 22 | . . . . . . 3 18 1 . . Piercing . | . . . . . . . . . . . Sneak Attacks 12 | . 1 5 1 1 2 . 2 . . . Combat Hostiles . | . . . . . . . . . . . Follow-up Attacks . | . . . . . . . . . . . Damage Inflicted 14276 | 142 760 1812 1806 1079 946 2689 3973 . 660 409 Guns 9584 | 142 534 . 1623 932 766 1559 3036 . 643 349 Cannons 1866 | . 207 1615 44 . . . . . . . Explosions 2004 | . . 194 . . . 1098 664 . . 48 Melee 639 | . . . 139 147 180 . 173 . . . Ramming 183 | . 19 3 . . . 32 100 . 17 12 Kinetic 2366 | . 485 1615 266 . . . . . . . Thermal 9534 | 142 256 . 1401 932 766 1559 3486 . 643 349 Explosive 1554 | . . 194 . . . 1098 214 . . 48 Electromagnetic . | . . . . . . . . . . . Impact 466 | . . . 139 147 180 . . . . . Slashing 173 | . . . . . . . 173 . . . Piercing . | . . . . . . . . . . . Highest Corruption 23 | . 1 . . 1 1 3 23 23 23 1 Average Corruption 6 | . 1 . . 1 1 2 5 23 23 1 Corruption Purged . | . . . . . . . . . . . Corruption Blocked . | . . . . . . . . . . . Effects 81 | . 3 . . . 5 7 33 5 27 1 Message Errors 11 | . . . . . 1 1 5 . 4 . Matter Fused 16 | . . . . . . 2 7 1 6 . Heat Flow Errors 13 | . 1 . . . 1 1 6 1 3 . Energy Discharges 13 | . 1 . . . 2 . 4 . 6 . Parts Rejected 4 | . . . . . . 1 . 1 2 . Parts Fused 1 | . . . . . . . . . 1 . Data Loss (minor) 12 | . 1 . . . . 1 4 1 4 1 Data Loss (major) 4 | . . . . . 1 . 3 . . . Misfires 1 | . . . . . . 1 . . . . Alerts 2 | . . . . . . . 1 1 . . Weapon Failures 4 | . . . . . . . 3 . 1 . Overload Shots 4 | . . . . . . . 4 . . . Overflow Damage 546 | . . 9 117 2 118 . 300 . . . Projectiles 1 | . . 1 . . . . . . . . Explosions 175 | . . 8 . . . . 167 . . . Melee 370 | . . . 117 2 118 . 133 . . . Knockbacks 18 | . 4 14 . . . . . . . . Impact . | . . . . . . . . . . . Kinetic 17 | . 4 13 . . . . . . . . Secondary 1 | . . 1 . . . . . . . . Self-Inflicted Damage 70 | . . . . . . . 64 . . 6 Shots 1 | . . . . . . . 1 . . . Rammed 2 | . . . . . . . . . 1 1 Targets Rammed 21 | . 3 2 . . . 2 8 . 5 1 Kicked 19 | . 3 2 . . . 2 8 . 4 . Crushed . | . . . . . . . . . . . Highest Temperature 375 | 108 232 56 216 234 300 375 266 219 244 202 Average Temperature 76 | 47 62 24 58 80 117 60 96 111 124 65 Received Heat Transfer 1785 | . 201 369 414 61 29 144 166 . 63 338 Effects 2 | . . . . . . . . . 2 . Interference 2 | . . . . . . . . . 2 . Siege Activations . | . . . . . . . . . . . Robots Corrupted 3 | . . . 1 1 1 . . . . . Combat Hostiles . | . . . . . . . . . . . Parts Fried 2 | . . . . . 2 . . . . . Impact Corruptions 6 | . . . 2 1 3 . . . . . Robots Melted 4 | . 1 . 1 . . 2 . . . . Combat Hostiles 4 | . 1 . 1 . . 2 . . . . Parts Melted 43 | . 4 . 9 . 4 6 18 . 1 1 Heat Transferred 17869 | 325 962 . 3219 1776 1591 3293 5297 . 777 629 Parts Sabotaged . | . . . . . . . . . . . Parts Stolen . | . . . . . . . . . . . Parts Stripped . | . . . . . . . . . . . Power Chain Reactions . | . . . . . . . . . . . Alert | -11 -10 -9 -8 -7 -6 -5 -4 -4 -4 -3 ------- Run | Yrd Mat Mat Mat Fac Fac Fac Fac Was Fac Res Peak Influence 580 | 20 262 580 490 430 387 295 366 123 229 268 Initial 203 | . 13 89 203 116 137 21 64 121 79 33 Average 196 | 7 126 338 269 217 118 148 169 116 113 140 Maximum Alert Level 2 | . 1 2 2 2 1 1 1 . 1 1 Low Security (%) 53 | 100 70 9 9 54 79 79 64 100 85 91 Level 1 40 | . 29 66 83 33 20 20 35 . 14 8 Level 2 5 | . . 23 6 11 . . . . . . Level 3 . | . . . . . . . . . . . Level 4 . | . . . . . . . . . . . Level 5 . | . . . . . . . . . . . High Security . | . . . . . . . . . . . Max Security . | . . . . . . . . . . . Squads Dispatched 29 | . 3 3 3 5 4 4 4 . 1 2 Investigation 8 | . 1 2 . 1 1 1 . . 1 1 Extermination 7 | . . . . 1 1 2 3 . . . Reinforcement 8 | . 2 1 . 1 2 . 1 . . 1 Assault 1 | . . . . . . 1 . . . . Garrison 5 | . . . 3 2 . . . . . . Intercept . | . . . . . . . . . . . Searches Triggered . | . . . . . . . . . . . Construction Impeded 1 | . . 1 . . . . . . . . Haulers Reinforced 1 | . . . . 1 . . . . . . Active Scanning Responses . | . . . . . . . . . . . Cargo Convoy Interrupts 1 | . . . . . . 1 . . . . Stealth | -11 -10 -9 -8 -7 -6 -5 -4 -4 -4 -3 --------- Run | Yrd Mat Mat Mat Fac Fac Fac Fac Was Fac Res Distress Signals 17 | . 1 6 3 1 . . 1 . 3 2 Communications Jammed 41 | . . . . . . 1 40 . . . Distress Signals 41 | . . . . . . 1 40 . . . Times Spotted 214 | . 17 44 26 15 11 23 35 6 10 27 Peak Tracking Total 8 | . 3 8 8 5 3 4 5 6 4 8 Tactical Retreats 17 | . . 3 2 . 1 2 2 . 2 5 Traps | -11 -10 -9 -8 -7 -6 -5 -4 -4 -4 -3 ------- Run | Yrd Mat Mat Mat Fac Fac Fac Fac Was Fac Res Traps Triggered 14 | . 2 3 . . 1 1 4 . 1 2 Indirectly . | . . . . . . . . . . . Trap Hack Attempts 66 | . 25 39 2 . . . . . . . Triggered . | . . . . . . . . . . . Disarmed 1 | . . . 1 . . . . . . . Reprogrammed 8 | . 2 1 . . . . . . 5 . Reused 3 | . 1 1 . . . . . . 1 . Traps Extracted . | . . . . . . . . . . . Installed . | . . . . . . . . . . . Triggered 4 | . 1 1 . . . 1 . . 1 . Machines | -11 -10 -9 -8 -7 -6 -5 -4 -4 -4 -3 ---------- Run | Yrd Mat Mat Mat Fac Fac Fac Fac Was Fac Res Machines Disabled 18 | . 1 . 1 . 5 3 7 . 1 . Max in Single Turn 5 | . 1 . 1 . 4 3 5 . 1 . Garrison Access 2 | . . . . 1 . 1 . . . . Machines Repaired . | . . . . . . . . . . . Machines Dismantled . | . . . . . . . . . . . Machines Sabotaged . | . . . . . . . . . . . Overloaded Fab Kills . | . . . . . . . . . . . Hacking | -11 -10 -9 -8 -7 -6 -5 -4 -4 -4 -3 --------- Run | Yrd Mat Mat Mat Fac Fac Fac Fac Was Fac Res Machines Accessed 57 | . 4 6 6 8 6 8 8 . 5 6 Terminals 27 | . 3 4 4 5 2 3 2 . 3 1 Fabricators 11 | . . . . 1 3 2 1 . 2 2 Repair Stations 9 | . . 1 2 1 . 1 3 . . 1 Recycling Units 8 | . 1 1 . . . 2 2 . . 2 Scanalyzers 1 | . . . . . 1 . . . . . Garrison Access 1 | . . . . 1 . . . . . . Total Hacks 129 | . 8 18 17 15 12 19 17 . 14 9 Successful 52 | . 3 7 8 4 4 10 7 . 6 3 Failed 77 | . 5 11 9 11 8 9 10 . 8 6 Catastrophic 19 | . 1 4 1 5 2 2 . . 1 3 Database Lockouts . | . . . . . . . . . . . Manual 38 | . 7 11 12 5 . 3 . . . . Terminals 79 | . 7 14 13 12 5 11 5 . 10 2 Fabricators 20 | . . . . 1 6 3 2 . 4 4 Repair Stations 16 | . . 2 4 1 . 2 6 . . 1 Recycling Units 12 | . 1 2 . . . 3 4 . . 2 Scanalyzers 1 | . . . . . 1 . . . . . Garrison Access 1 | . . . . 1 . . . . . . Terminal Hacks 27 | . 2 4 4 3 2 5 2 . 5 . Robot Schematic 1 | . . . . 1 . . . . . . Robot Analysis 7 | . 2 2 3 . . . . . . . Prototype ID Bank 2 | . . . . . . 1 . . 1 . Level Access Points 1 | . . . . . . 1 . . . . Branch Access Points 1 | . . . . . . . 1 . . . Unreport Threat 4 | . . . 1 . 1 1 . . 1 . Locate Traps 7 | . . 1 . 1 1 1 1 . 2 . Reprogram Traps 1 | . . . . . . . . . 1 . Hauler Manifests 1 | . . 1 . . . . . . . . Registered Components 1 | . . . . . . 1 . . . . Zone Layout 1 | . . . . 1 . . . . . . Fabricator Hacks 9 | . . . . . 2 3 2 . 1 1 Network Status 5 | . . . . . 1 1 1 . 1 1 Build 4 | . . . . . 1 2 1 . . . Repair Station Hacks 11 | . . 2 4 . . 1 3 . . 1 Scan Component 6 | . . 1 2 . . 1 2 . . . Repair 4 | . . 1 2 . . . 1 . . . Refit 1 | . . . . . . . . . . 1 Recycling Unit Hacks 4 | . 1 1 . . . 1 . . . 1 Process 1 | . . 1 . . . . . . . . Retrieve Components 3 | . 1 . . . . 1 . . . 1 Scanalyzer . | . . . . . . . . . . . Garrison Access Hacks 1 | . . . . 1 . . . . . . Seal Access 1 | . . . . 1 . . . . . . Unauthorized Hacks . | . . . . . . . . . . . Terminals . | . . . . . . . . . . . Fabricators . | . . . . . . . . . . . Repair Stations . | . . . . . . . . . . . Recycling Units . | . . . . . . . . . . . Scanalyzers . | . . . . . . . . . . . Garrison Access . | . . . . . . . . . . . Data Cores Recovered 2 | . . 1 . 1 . . . . . . Used . | . . . . . . . . . . . Hacking Detections 46 | . 3 5 5 6 6 5 7 . 5 4 Full Trace Events 6 | . . 1 . 1 1 1 . . 1 1 Feedback Events 1 | . . . . . 1 . . . . . Corruption 1 | . . . . . 1 . . . . . Feedback Blocked . | . . . . . . . . . . . Robot Schematics Acquired 1 | . . . . 1 . . . . . . Robots Built 5 | . . . . . 2 3 . . . . Authchips . | . . . . . . . . . . . Time 285 | . . . . . 116 169 . . . . Total Robot Build Rating 24 | . . . . . 6 18 . . . . Part Schematics Acquired . | . . . . . . . . . . . Parts Built 4 | . . . . . . 2 2 . . . Authchips . | . . . . . . . . . . . Time 208 | . . . . . . 69 139 . . . Total Part Build Rating 36 | . . . . . . 18 18 . . . Parts Repaired 4 | . . 1 2 . . . 1 . . . Time 115 | . . 26 70 . . . 19 . . . Parts Recycled . | . . . . . . . . . . . Recycled Matter 116 | . . 116 . . . . . . . . Retrieved Matter . | . . . . . . . . . . . Retrieved Components 14 | . 10 . . . . 1 . . . 3 Parts Scanalyzed . | . . . . . . . . . . . Part Schematics Acquired . | . . . . . . . . . . . Parts Damaged . | . . . . . . . . . . . Bothacking | -11 -10 -9 -8 -7 -6 -5 -4 -4 -4 -3 ------------ Run | Yrd Mat Mat Mat Fac Fac Fac Fac Was Fac Res Used RIF Installer . | . . . . . . . . . . . Robots Hacked 6 | . 1 5 . . . . . . . . Non-combat 6 | . 1 5 . . . . . . . . Combat . | . . . . . . . . . . . Robot Hacks Applied 7 | . 1 6 . . . . . . . . parse_system 1 | . . 1 . . . . . . . . no_distress 4 | . 1 3 . . . . . . . . find_recycling 1 | . . 1 . . . . . . . . find_station 1 | . . 1 . . . . . . . . Relay Couplers Released . | . . . . . . . . . . . Fabnet Peak Effective % . | . . . . . . . . . . . Robots Rewired 1 | . . . . 1 . . . . . . Allies Hacked . | . . . . . . . . . . . Hacks Repelled . | . . . . . . . . . . . Allies | -11 -10 -9 -8 -7 -6 -5 -4 -4 -4 -3 -------- Run | Yrd Mat Mat Mat Fac Fac Fac Fac Was Fac Res Total Allies 6 | . . . . 1 2 3 . . . . Largest Group 3 | . . . . 1 2 3 . . . . Highest-Rated Group 90 | . . . . 32 48 90 . . . . Highest-Rated Ally 32 | . . . . 32 24 30 . . . . Total Orders 8 | . . . . . . 8 . . . . STAY 7 | . . . . . . 7 . . . . FOLLOW 1 | . . . . . . 1 . . . . Ally Attacks 33 | . . . . 20 4 9 . . . . Total Damage 862 | . . . . 600 43 219 . . . . Kills 7 | . . . . 6 . 1 . . . . Allies Corrupted . | . . . . . . . . . . . Allies Melted . | . . . . . . . . . . . Intel | -11 -10 -9 -8 -7 -6 -5 -4 -4 -4 -3 ------- Run | Yrd Mat Mat Mat Fac Fac Fac Fac Was Fac Res Robot Analysis Total 7 | . 2 2 3 . . . . . . . Derelict Logs Recovered . | . . . . . . . . . . . Drone Launches . | . . . . . . . . . . . Drone Recoveries . | . . . . . . . . . . . Exploration | -11 -10 -9 -8 -7 -6 -5 -4 -4 -4 -3 ------------- Run | Yrd Mat Mat Mat Fac Fac Fac Fac Was Fac Res Turns Passed 8756 | 121 735 1253 1474 887 912 876 1459 75 593 371 Spaces Moved 4892 | 69 384 649 623 488 384 524 696 104 402 569 Core 809 | 6 . . . . . . 13 91 229 470 Treads . | . . . . . . . . . . . Legs 3984 | 63 384 649 623 488 384 524 683 13 173 . Wheels . | . . . . . . . . . . . Hover 99 | . . . . . . . . . . 99 Flight . | . . . . . . . . . . . Fastest Speed 50 | 50 120 120 120 120 120 104 50 50 50 50 Average Speed 118 | 113 120 120 181 142 120 110 114 58 111 55 Slowest Speed 330 | 120 120 120 190 190 120 123 330 120 200 160 Overloaded Moves . | . . . . . . . . . . . Propulsion Burnouts . | . . . . . . . . . . . Robots Hopped . | . . . . . . . . . . . Cave-ins Triggered . | . . . . . . . . . . . Exploration Rate (%) 32 | 5 59 64 50 15 15 13 26 68 15 24 Regions Visited 10 Branch Regions . Pre-discovered Areas . | . . . . . . . . . . . Known Exits Taken 4 | . . . . 1 1 1 . . 1 . Unknown Exits Taken 4 | 1 1 1 1 . . . . . . . Scrap Searched . | . . . . . . . . . . . Spaces Dug 31 | . . . 2 2 3 3 19 1 1 . Terrain Destroyed 164 | . . 12 2 2 26 38 74 1 9 . Melee 25 | . . . 2 2 3 3 14 1 . . Projectile 14 | . . . . . . . 5 . 9 . AOE 125 | . . 12 . . 23 35 55 . . . Terrain Rammed . | . . . . . . . . . . . Walls Destroyed . | . . . . . . . . . . . Machines Disabled . | . . . . . . . . . . . Actions | -11 -10 -9 -8 -7 -6 -5 -4 -4 -4 -3 --------- Run | Yrd Mat Mat Mat Fac Fac Fac Fac Was Fac Res Total 7059 | 90 595 983 859 607 777 737 1171 115 521 604 Wait 1239 | 2 101 153 104 51 339 129 293 4 53 10 Move 4884 | 68 383 648 622 487 383 524 696 103 401 569 Hop . | . . . . . . . . . . . Pick Up 74 | 5 11 13 16 5 4 6 11 . 2 1 Fast Attach 74 | 6 7 7 14 6 2 6 6 4 11 5 Attach 35 | . . 1 2 2 1 2 20 2 2 3 Detach 26 | . 4 1 3 3 . 1 6 . 6 2 Swap 107 | . 9 17 18 7 11 18 27 . . . Drop 118 | . 17 23 27 11 5 11 13 1 9 1 Fire 367 | 9 34 73 47 30 21 36 73 . 32 12 Melee 43 | . 1 6 4 4 6 3 18 1 . . Ram 2 | . . . . . . . . . 1 1 Kick 18 | . 3 2 . . . 1 8 . 4 . Crush . | . . . . . . . . . . . Escape Stasis 5 | . . . . . 5 . . . . . Rewire 1 | . . . . 1 . . . . . . Trap 66 | . 25 39 2 . . . . . . . Miscellaneous . | . . . . . . . . . . . Route ------- -11/Scrapyard -10/Materials (discovered 3 exits: *Mat x2 / [*Min]) -9/Materials (discovered 3 exits: *Mat x2 / [*Min]) -8/Materials -7/Factory -6/Factory -5/Factory (discovered 4 exits: *Fac x4) -4/Factory (discovered 2 exits: Upp x2) -4/Waste -4/Factory -3/Research History --------- Turn | Location | Event 4 | -11/Scrapyard | Discovered new exit (range 14) 122 | -11/Scrapyard | Entered Materials 287 | -10/Materials | Discovered new exit (range 12) 302 | -10/Materials | Build established: Mutant 406 | -10/Materials | Discovered new exit (range 9) 846 | -10/Materials | Discovered new exit (range 7) 857 | -10/Materials | Entered another Materials area 857 | -9/Materials | Evolved 2 slots: Propulsion x1, Utility x1 1040 | -9/Materials | Discovered new exit (range 13) 1094 | -9/Materials | Discovered new exit (range 9) 1300 | -9/Materials | Build established: Scavenger-Mutant 1606 | -9/Materials | Repaired Lgt. Armor Plating 1803 | -9/Materials | Discovered new exit (range 11) 1826 | -9/Materials | Build established: Mutant 2110 | -9/Materials | Entered another Materials area 2110 | -8/Materials | Evolved 2 slots: Utility x1, Weapon x1 2717 | -8/Materials | Discovered new exit (range 3) 2772 | -8/Materials | Repaired Hrd. Medium Armor Plating 2902 | -8/Materials | Repaired Imp. Aluminum Leg 3318 | -8/Materials | Build established: Tank 3360 | -8/Materials | Garrison activated, responded to threat 3584 | -8/Materials | Entered Factory 3584 | -7/Factory | Evolved 2 slots: Propulsion x1, Utility x1 4125 | -7/Factory | Garrison activated, responded to threat 4384 | -7/Factory | Build established: Scavenger-Tank 4420 | -7/Factory | Discovered new exit (range 14) 4471 | -7/Factory | Identified exit to Factory 4471 | -7/Factory | Entered another Factory area 4471 | -6/Factory | Evolved 2 slots: Power x1, Utility x1 4973 | -6/Factory | Fabricated X-57 Shotgunner (x2) 5105 | -6/Factory | Discovered new exit (range 16) 5351 | -6/Factory | Identified exit to Factory 5383 | -6/Factory | Entered another Factory area 5383 | -5/Factory | Evolved 2 slots: Propulsion x1, Utility x1 5504 | -5/Factory | Build established: Scavenger-Skirmisher 5652 | -5/Factory | Fabricated B-60 Warrior? 5730 | -5/Factory | P-70 Sage assimilated allied Warrior 6b 6019 | -5/Factory | Identified exit to Factory 6162 | -5/Factory | Fabricated Quantum Reactor (x2) 6188 | -5/Factory | Cargo convoy interrupted 6259 | -5/Factory | Entered another Factory area 6259 | -4/Factory | Evolved 2 slots: Propulsion x1, Utility x1 6314 | -4/Factory | Lost 3 parts (1u2w) 6512 | -4/Factory | Repaired Imp. Light Armor Plating 6584 | -4/Factory | Identified exit to Upper Caves 6846 | -4/Factory | Lost 3 parts (1p2n) 7078 | -4/Factory | Fabricated Enh. Quantum Rifle? 7126 | -4/Factory | Build established: Scavenger-Tank 7498 | -4/Factory | Lost 4 parts (1n3w) 7645 | -4/Factory | System corruption reached 10% 7718 | -4/Factory | Sucked down chute 7718 | -4/Factory | Entered Waste 7723 | -4/Waste | Spotted C-40 Crusher 7726 | -4/Waste | Spotted C-40 Crusher 7727 | -4/Waste | Lost 12 parts (2p3n5u2w) 7729 | -4/Waste | Found Unknown Device 7729 | -4/Waste | Identified Heavy Servo Lattice 7745 | -4/Waste | Crushed by Compactor (1 part destroyed, 1 dropped) 7746 | -4/Waste | Spotted C-40 Crusher 7746 | -4/Waste | Spotted C-40 Crusher 7749 | -4/Waste | Spotted C-40 Crusher 7754 | -4/Waste | Spotted C-40 Crusher 7772 | -4/Waste | Discovered new exit (range 13) 7792 | -4/Waste | Identified exit to Factory 7793 | -4/Waste | Entered Factory 7801 | -4/Factory | Found Quantum Capacitor 7965 | -4/Factory | Build established: Mutant 8378 | -4/Factory | Discovered new exit (range 14) 8386 | -4/Factory | Identified exit to Research 8386 | -4/Factory | Entered Research 8386 | -3/Research | Evolved 2 slots: Propulsion x1, Utility x1 8697 | -3/Research | Core integrity fell below 50% 8724 | -3/Research | Lost 9 parts (2p2n1u4w) 8738 | -3/Research | Spotted B-86 Titan 8739 | -3/Research | Core integrity fell below 20% 8757 | -3/Research | Destroyed by S-43 Plague with Heavy Machine Gun Last Messages --------------- 08677_ Slug penetrates Wall. 08678_ Quantum Rifle destroyed. 08681_ Missile Launcher destroyed. 08684_ Penetrated by Slug. 08684_ Backup Power I destroyed. 08684_ Backup Propulsion I destroyed. 08687_ Slug penetrates Antiparticle Reservoir. 08687_ Backup Laser I destroyed. 08688_ U-05 Engineer lays Concrete. 08689_ H-77 Assassin destroyed. 08690_ U-05 Engineer lays Concrete. 08692_ Acquired 69 matter. 08693_ U-05 Engineer lays Concrete. 08693_ Adv. Signal Interpreter destroyed. 08694_ U-05 Engineer lays Concrete. 08698_ Critical hit (Burn: +37). 08703_ Critical hit (Burn: +50). 08732_ Adv. Hacking Suite destroyed. 08754_ ALERT: Security rotation in progress. Map ----- +----------------------------------------------------+ | #????????????????????????????????????????????? | | #????????????????????????????????????????????? | | #????????????????????????????????????????????? | | #???######???????????????????????????????????? | | #### ??????????????????????????????????? | | == ??????????????????????????????????? | | == ??????????????????????????????????? | | ??????????????????????????????????? | | "??????????????????????????????????? | | "??????????????????????????????????? | | []* "?????????? ???????????????????????? | | [] T?????????? ???????????????????????? | | [] """ "?????????? ???????????????????????? | | "#????????? #??????????????????????? | | "#????????? #??????????????????????? | | #????????? #??????????????????????? | | #????????? #??????????????????????? | | #????????# #??????????????????????? | | #+#??????# #??????????????????????? | | #### #??????# #??????????????????????? | | #??# ######## ###+#########??????????? | | #??#=== RR t ?????????? | | #??#=== A ?????????? | | # ##??#== g ????????? | | # #???# s ????????? | | #+##### s @ k ????????? | | # #################+####???????????????? | | # #= #??????????????????????????? | | # # #??????????????????????????? | | "" + + """ ???????????????????????????? | | "" # # """ ???????????????????????????? | | "" # # """ ????????????????????????????? | | # #? ????????????????????????????? | | # #? ???????????????????????????? | | #/##### #?? #??????????????????????????? | | # #???# #??########??????????????????????????? | | # #???# #????????????????????????????????????? | | #???# #????????????????????????????????????? | | ##### #????????????????????????????????????? | | #????????????????????????????????????? | | #########+###????????????????????????????????????? | | ??????? ?????????????????????????????????????? | | ????? ???????????????????????????????????? | | ??? ?????????????????????????????????? | | ?# ! ???????????????????????????????? | | ?# #??????????????????????????????? | | ?# #??????????????????????????????? | | ?# #??????????????????????????????? | | ?# #??????????????????????????????? | | ?# #??????????????????????????????? | +----------------------------------------------------+ Best States ------------- Heat Dissipation 93 Energy Generation 41 Energy Capacity 550 Matter Stores 300 Matter Capacity 300 Sight Range 16 Robot Scan Range 15 Terrain Scan Density 210 Jamming Range 14 Base Temperature (-) 200 Corruption Containment 12 Armor Coverage 300 Resistance: TH 30 Evasion (%) 65 Targeting Accuracy 6 Offensive Hacking 22 Defensive Hacking 10 Item Schematics ----------------- None Robot Schematics ------------------ B-36 Bruiser | -7/Factory | Hacked Fabricated ------------ X-57 Shotgunner | x2 | -6/Factory | Preloaded B-60 Warrior | x3 | -5/Factory | Preloaded Quantum Reactor | x2 | -5/Factory | Preloaded Enh. Quantum Rifle | x2 | -4/Factory | Preloaded Alien Tech Used ----------------- None Achievements -------------- None Challenges ------------ None Game ------ Seed ImprovedSuspensionCanceller Manual? 0 Play Time 01:06:21 Cumulative 1688.2 hours Start 2024.09.14 @ 18:28:19 End 2024.09.14 @ 19:35:57 Sessions 1 Manual Loads 0 Difficulty Rogue Special Mode None Game No. 1149 Rogue 1145 Adventurer 4 Explorer 0 Win Type - Total 213 Types 159/11/15/9/3/1/3/8/4 Lore% 98 Gallery% 98 Achievement% 98 Wizard Run 0 Options --------- Layout 2 ASCII 0 Keyboard 1 Movement Vi Keybinds 0 Fullscreen 0 Font 24/Terminus Map View 59x48 Zoom Use 0% Tactical HUD 1 Map Filters NONE Filters NONE Steam 1 RUN: 4e09d7fa-0b94-490a-ad78-fe5de69dc94f